fUSD/lending_fUSD_20250110
["ID","MTS","AMOUNT","RATE_DAILY","PERIOD"]
[348473058,1736550642095,-500.0,9.799e-05,2]
[348473059,1736550642107,-500.0,9.799e-05,2]
[348473060,1736550642118,-500.0,9.799e-05,2]
[348473061,1736550642131,-500.0,9.799e-05,2]
[348473062,1736550642142,-500.0,9.799e-05,2]
[348473063,1736550642154,-575.59,9.799e-05,2]
[348473064,1736550642165,-500.0,9.799e-05,2]
[348473065,1736550642178,-500.0,9.799e-05,2]
[348473066,1736550642190,-500.0,9.799e-05,2]
[348473067,1736550642201,-500.0,9.799e-05,2]
[348473068,1736550642213,-2166.19,9.799e-05,2]
[348473069,1736550642225,-500.0,9.799e-05,2]
[348473070,1736550642236,-167.6792106,9.799e-05,2]
[348473071,1736550642247,-500.0,9.799e-05,2]
[348473072,1736550642259,-500.0,9.799e-05,2]
[348473073,1736550642271,-500.0,9.799e-05,2]
[348473074,1736550642282,-500.0,9.799e-05,2]
[348473075,1736550642293,-500.0,9.799e-05,2]
[348473076,1736550642304,-500.0,9.799e-05,2]
[348473077,1736550642316,-500.0,9.799e-05,2]
[348473078,1736550642327,-500.0,9.799e-05,2]
[348473079,1736550642338,-607.39,9.799e-05,2]
[348473080,1736550642349,-562.9901369,9.799e-05,2]
[348473081,1736550642360,-102603.96949804,9.8e-05,2]
[348473082,1736550642382,-9468.7499975,9.8e-05,2]
[348473083,1736550642395,-16701.68459639,9.8e-05,2]
[348473084,1736550642493,-451.5099872,9.8e-05,2]
[348473085,1736550642506,-491.2881889,9.8e-05,2]
[348473086,1736550642519,-2546.684949,9.8e-05,2]
[348473087,1736550642538,-1655.59,9.8e-05,2]
[348473088,1736550642551,-4752.07972932,9.8e-05,2]
[348473089,1736550642564,-2124.94160717,9.8e-05,2]
[348473090,1736550642578,-497.60127281,9.8e-05,2]
[348473091,1736550642592,-417.45262676,9.8e-05,2]
[348473092,1736550642627,-62732.01499977,9.8e-05,2]
[348473093,1736550642640,-812.12717897,9.8e-05,2]
[348473101,1736550643484,-500.0,9.773e-05,2]
[348473102,1736550643496,-74052.24274399,9.8e-05,2]
[348473103,1736550643509,-445.10019242,9.8e-05,2]
[348473104,1736550643523,-6224.08578409,9.8e-05,2]
[348473120,1736550643829,-145902.5136929,9.8e-05,2]
[348473124,1736550643894,-1700.0,9.9e-05,3]
[348473127,1736550643911,-500.0,9.999e-05,2]
[348473129,1736550643921,-500.0,9.999e-05,2]
[348473131,1736550643931,-500.0,9.999e-05,2]
[348473133,1736550643940,-822.03,9.999e-05,2]
[348473135,1736550643949,-500.0,9.999e-05,2]
[348473137,1736550643958,-500.0,9.999e-05,2]
[348473138,1736550643968,-612.12,9.999e-05,2]
[348473140,1736550643978,-1000.0,9.999e-05,2]
[348473142,1736550643988,-500.0,9.999e-05,2]
[348473144,1736550643998,-500.0,9.999e-05,2]
[348473146,1736550644008,-500.0,9.999e-05,2]
[348473148,1736550644017,-645.08,9.999e-05,2]
[348473150,1736550644027,-86668.2563121,0.0001,2]
[348473153,1736550644038,-1938.45550524,0.0001,2]
[348473155,1736550644050,-5259.0232544,0.0001,2]
[348473156,1736550644061,-1868.53283797,0.0001,2]
[348473157,1736550644072,-1836.16629,0.0001,2]
[348473158,1736550644084,-679.30499915,0.0001,2]
[348473159,1736550644095,-33390.49657982,0.0001,2]
[348473160,1736550644105,-22589.40757997,0.0001,2]
[348473161,1736550644121,-572.4865023,0.0001,2]
[348473162,1736550644133,-282.07,0.0001,2]
[348473163,1736550644145,-463.59,0.0001,2]
[348473180,1736550646452,-477.688095,9.75e-05,2]
[348473181,1736550646463,-500.0,9.798e-05,2]
[348473182,1736550646475,-500.0,9.798e-05,2]
[348473183,1736550646485,-500.0,9.799e-05,2]
[348473184,1736550646496,-500.0,9.999e-05,2]
[348473185,1736550646507,-27122.311705,0.0001,2]
[348473186,1736550646520,-68973.200001,0.0001,2]
[348473187,1736550646540,-950.75,0.0001,2]
[348473188,1736550646578,-4507.18095193,0.0001,2]
[348473189,1736550646590,-34902.78590849,0.0001,2]
[348473190,1736550646678,-1232.53249201,0.0001,2]
[348473191,1736550646688,-164.96,0.0001,2]
[348473192,1736550646699,-2067.97742799,0.0001,2]
[348473193,1736550646711,-982.02257201,0.0001,2]
[348473194,1736550646721,-3000.0,0.0001,2]
[348473195,1736550646732,-866.36385319,0.0001,3]
[348473196,1736551153272,291.98,7.397e-05,2]
[348473197,1736551249021,598.18,8.219e-05,2]
[348473198,1736551307419,604.23045633,0.0002,120]
[348473200,1736551454577,170.65,7.225e-05,2]
[348473201,1736551554843,1919.19081665,0.00017,120]
[348473202,1736551723974,152.68620582,0.0002,120]
[348473209,1736551831615,-970.02,8.759e-05,2]
[348473211,1736551831625,-15.02796058,8.79e-05,2]
[348473212,1736551831638,-615.13203942,8.79e-05,2]
[348473213,1736551831648,-250.0,8.969e-05,2]
[348473214,1736551831657,-250.0,9.002e-05,2]
[348473215,1736551831667,-200.0,9.056e-05,2]
[348473216,1736551831677,-1915.38456527,9.068e-05,2]
[348473217,1736551831687,-4.07515174,9.069e-05,2]
[348473218,1736551831698,-245.92484826,9.069e-05,2]
[348473219,1736551831708,-163.93,9.113e-05,2]
[348473220,1736551831717,-1915.38456525,9.178e-05,2]
[348473221,1736551831726,-979.82,9.178e-05,2]
[348473222,1736551831736,-150.0,9.178e-05,2]
[348473223,1736551831746,-150.0,9.178e-05,2]
[348473224,1736551831756,-161.87,9.178e-05,2]
[348473225,1736551831766,-150.0,9.18e-05,2]
[348473226,1736551831776,-845.67058649,9.18e-05,2]
[348473227,1736551831804,-134.14941351,9.18e-05,2]
[348473228,1736551831815,-150.0,9.18e-05,2]
[348473229,1736551831824,-150.0,9.18e-05,2]
[348473230,1736551831835,-150.0,9.18e-05,2]
[348473231,1736551831846,-150.0,9.18e-05,2]
[348473232,1736551831856,-150.0,9.18e-05,2]
[348473233,1736551831866,-979.82,9.18e-05,2]
[348473234,1736551831876,-150.0,9.18e-05,2]
[348473235,1736551831885,-263.79,9.205e-05,2]
[348473236,1736551831895,-186.03,9.263e-05,2]
[348473237,1736551831904,-4033.39923969,9.322e-05,2]
[348473238,1736551831917,-6975.3829248,9.322e-05,2]
[348473239,1736551831930,-646.9888024,9.322e-05,2]
[348473240,1736551831945,-1244.15535,9.322e-05,2]
[348473241,1736551831958,-1532.001324,9.322e-05,2]
[348473242,1736551831971,-1663.89699298,9.322e-05,2]
[348473243,1736551831990,-1209.496,9.322e-05,2]
[348473244,1736551832006,-644.63256189,9.322e-05,2]
[348473245,1736551832026,-1009.04680424,9.322e-05,2]
[348473246,1736551832036,-1500.0,9.322e-05,2]
[348473247,1736551832045,-1500.0,9.5e-05,3]
[348473248,1736551832055,-3100.0,9.6e-05,3]
[348473249,1736551832065,-150.0,9.698e-05,2]
[348473250,1736551832075,-898.2585,9.699e-05,2]
[348473251,1736551832084,-1036.36657061,9.7e-05,3]
[348473252,1736551832096,-3663.63342939,9.7e-05,3]
[348473253,1736551832105,-676.05114348,9.797e-05,2]
[348473254,1736551832116,-500.0,9.798e-05,2]
[348473255,1736551832128,-500.0,9.798e-05,2]
[348473256,1736551832138,-500.0,9.798e-05,2]
[348473258,1736551832148,-500.0,9.798e-05,2]
[348473260,1736551832158,-500.0,9.798e-05,2]
[348473262,1736551832168,-500.0,9.798e-05,2]
[348473263,1736551832177,-500.0,9.798e-05,2]
[348473265,1736551832187,-408.51504294,9.798e-05,2]
[348473267,1736551832197,-500.0,9.798e-05,2]
[348473269,1736551832206,-500.0,9.798e-05,2]
[348473270,1736551832216,-500.0,9.798e-05,2]
[348473271,1736551832225,-297.86,9.798e-05,2]
[348473272,1736551832235,-500.0,9.798e-05,2]
[348473273,1736551832245,-500.0,9.798e-05,2]
[348473274,1736551832254,-500.0,9.798e-05,2]
[348473275,1736551832264,-500.0,9.798e-05,2]
[348473276,1736551832274,-500.0,9.798e-05,2]
[348473277,1736551832284,-500.0,9.798e-05,2]
[348473278,1736551832294,-500.0,9.798e-05,2]
[348473279,1736551832303,-500.0,9.798e-05,2]
[348473280,1736551832313,-500.0,9.798e-05,2]
[348473281,1736551832323,-500.0,9.798e-05,2]
[348473282,1736551832332,-500.0,9.798e-05,2]
[348473283,1736551832342,-500.0,9.798e-05,2]
[348473284,1736551832352,-500.0,9.798e-05,2]
[348473285,1736551832362,-500.0,9.798e-05,2]
[348473286,1736551832371,-500.0,9.798e-05,2]
[348473287,1736551832381,-500.0,9.798e-05,2]
[348473288,1736551832391,-500.0,9.798e-05,2]
[348473289,1736551832401,-500.0,9.798e-05,2]
[348473290,1736551832411,-500.0,9.798e-05,2]
[348473291,1736551832421,-500.0,9.798e-05,2]
[348473292,1736551832430,-349.84038419,9.798e-05,2]
[348473293,1736551832443,-150.15961581,9.798e-05,2]
[348473294,1736551832452,-354.13538622,9.798e-05,2]
[348473295,1736551832469,-145.86461378,9.798e-05,2]
[348473296,1736551832479,-500.0,9.798e-05,2]
[348473297,1736551832489,-500.0,9.798e-05,2]
[348473298,1736551832498,-500.0,9.798e-05,2]
[348473299,1736551832508,-465.01,9.798e-05,2]
[348473300,1736551832530,-158.04,9.798e-05,2]
[348473301,1736551832540,-500.0,9.798e-05,2]
[348473302,1736551832550,-500.0,9.798e-05,2]
[348473303,1736551832561,-500.0,9.798e-05,2]
[348473304,1736551832571,-900.14,9.798e-05,2]
[348473305,1736551832581,-500.0,9.798e-05,2]
[348473306,1736551832591,-1002.24,9.798e-05,2]
[348473307,1736551832601,-2129.94,9.798e-05,2]
[348473308,1736551832612,-624.37,9.798e-05,2]
[348473309,1736551832622,-736.46,9.798e-05,2]
[348473310,1736551832632,-500.0,9.798e-05,2]
[348473311,1736551832642,-713.45,9.798e-05,2]
[348473312,1736551832652,-500.0,9.799e-05,2]
[348473313,1736551832662,-500.98348293,9.799e-05,2]
[348473314,1736551832673,-500.58289113,9.799e-05,2]
[348473315,1736551832684,-501.55184241,9.799e-05,2]
[348473316,1736551832694,-523.97782732,9.799e-05,2]
[348473317,1736551832705,-501.18855224,9.799e-05,2]
[348473318,1736551832715,-179.66877227,9.799e-05,2]
[348473319,1736551832725,-502.1104876,9.799e-05,2]
[348473320,1736551832735,-502.1991438,9.799e-05,2]
[348473321,1736551832746,-502.12897634,9.799e-05,2]
[348473322,1736551832756,-501.64386903,9.799e-05,2]
[348473323,1736551832766,-500.23523175,9.799e-05,2]
[348473324,1736551832776,-518.36388282,9.799e-05,2]
[348473325,1736551832786,-500.81883492,9.799e-05,2]
[348473326,1736551832797,-500.48975667,9.799e-05,2]
[348473327,1736551832807,-500.45967866,9.799e-05,2]
[348473328,1736551832818,-501.04386672,9.799e-05,2]
[348473329,1736551832828,-500.0,9.799e-05,2]
[348473330,1736551832838,-252.71006306,9.799e-05,2]
[348473331,1736551832848,-1000.0,9.799e-05,2]
[348473332,1736551832858,-500.88864951,9.799e-05,2]
[348473333,1736551832869,-500.75073556,9.799e-05,2]
[348473334,1736551832879,-501.92496728,9.799e-05,2]
[348473335,1736551832889,-500.0,9.799e-05,2]
[348473336,1736551832899,-500.0,9.799e-05,2]
[348473337,1736551832910,-500.0,9.799e-05,2]
[348473338,1736551832920,-500.0,9.799e-05,2]
[348473339,1736551832930,-500.0,9.799e-05,2]
[348473340,1736551832940,-500.0,9.799e-05,2]
[348473341,1736551832950,-500.0,9.799e-05,2]
[348473342,1736551832960,-500.0,9.799e-05,2]
[348473343,1736551832971,-500.0,9.799e-05,2]
[348473344,1736551832981,-2185.77,9.799e-05,2]
[348473345,1736551832991,-586.61,9.799e-05,2]
[348473346,1736551833001,-500.0,9.799e-05,2]
[348473347,1736551833013,-500.0,9.799e-05,2]
[348473348,1736551833031,-795.72,9.799e-05,2]
[348473349,1736551833042,-500.0,9.799e-05,2]
[348473350,1736551833053,-806.77,9.799e-05,2]
[348473351,1736551833065,-500.0,9.799e-05,2]
[348473352,1736551833076,-1180.42,9.799e-05,2]
[348473353,1736551833086,-849.9,9.799e-05,2]
[348473354,1736551833098,-500.0,9.799e-05,2]
[348473355,1736551833109,-761.29,9.799e-05,2]
[348473356,1736551833119,-1689.56,9.799e-05,2]
[348473357,1736551833130,-1000.0,9.799e-05,2]
[348473358,1736551833140,-2007.96,9.799e-05,2]
[348473359,1736551833151,-500.0,9.799e-05,2]
[348473360,1736551833162,-679.88,9.799e-05,2]
[348473361,1736551833174,-500.0,9.799e-05,2]
[348473362,1736551833185,-595.57,9.799e-05,2]
[348473363,1736551833195,-618.2,9.799e-05,2]
[348473364,1736551833207,-500.0,9.799e-05,2]
[348473365,1736551833218,-1499.72,9.799e-05,2]
[348473366,1736551833228,-500.0,9.799e-05,2]
[348473367,1736551833239,-500.0,9.799e-05,2]
[348473368,1736551833249,-619.33,9.799e-05,2]
[348473369,1736551833258,-500.0,9.799e-05,2]
[348473370,1736551833268,-500.0,9.799e-05,2]
[348473371,1736551833278,-500.0,9.799e-05,2]
[348473372,1736551833289,-787.78,9.799e-05,2]
[348473373,1736551833299,-500.0,9.799e-05,2]
[348473374,1736551833310,-6300.0,9.8e-05,3]
[348473375,1736551833320,-1860.78231017,9.801e-05,2]
[348473378,1736551837508,-500.0,9.799e-05,2]
[348473379,1736551837519,-562.17,9.799e-05,2]
[348473380,1736551837530,-18251.21768983,9.801e-05,2]
[348473381,1736551837540,-1239.233,9.81e-05,2]
[348473382,1736551837550,-630.16,9.888e-05,2]
[348473383,1736551837559,-7900.0,9.9e-05,3]
[348473384,1736551837569,-5000.0,9.9e-05,2]
[348473385,1736551837580,-2026.12665707,9.91e-05,2]
[348473386,1736551837592,-12893.8938511,9.91e-05,2]
[348473387,1736551837604,-6596.03655,9.91e-05,2]
[348473388,1736551837617,-559.44378125,9.91e-05,2]
[348473389,1736551837636,-761.14136323,9.91e-05,2]
[348473390,1736551837646,-175.08747125,9.91e-05,2]
[348473391,1736551837658,-4035.61799379,9.91e-05,2]
[348473392,1736551837668,-672.66,9.91e-05,2]
[348473393,1736551837678,-500.0,9.973e-05,2]
[348473394,1736551837688,-250.8032,9.973e-05,2]
[348473395,1736551837698,-979.82,9.98e-05,2]
[348473396,1736551837707,-150.0,9.98e-05,2]
[348473397,1736551837717,-979.82,9.98e-05,2]
[348473398,1736551837727,-13422.8775527,9.993e-05,2]
[348473399,1736551837738,-611.77,9.999e-05,2]
[348473400,1736551837748,-500.0,9.999e-05,2]
[348473401,1736551837758,-999.93,9.999e-05,2]
[348473402,1736551837769,-1612.61,9.999e-05,2]
[348473403,1736551837779,-893.73,9.999e-05,2]
[348473404,1736551837790,-585.55,9.999e-05,2]
[348473405,1736551837799,-500.0,9.999e-05,2]
[348473406,1736551837810,-500.0,9.999e-05,2]
[348473407,1736551837820,-1523.18,9.999e-05,2]
[348473408,1736551837829,-500.0,9.999e-05,2]
[348473409,1736551837839,-500.0,9.999e-05,2]
[348473410,1736551837849,-500.0,9.999e-05,2]
[348473411,1736551837859,-500.0,9.999e-05,2]
[348473412,1736551837869,-500.0,9.999e-05,2]
[348473414,1736551837879,-500.0,9.999e-05,2]
[348473416,1736551837888,-500.0,9.999e-05,2]
[348473418,1736551837898,-500.0,9.999e-05,2]
[348473420,1736551837908,-500.0,9.999e-05,2]
[348473422,1736551837918,-612.69594199,9.999e-05,2]
[348473424,1736551837928,-379.03,9.999e-05,2]
[348473426,1736551837938,-500.0,9.999e-05,2]
[348473428,1736551837949,-500.0,9.999e-05,2]
[348473429,1736551837958,-888.68,9.999e-05,2]
[348473430,1736551837968,-500.0,9.999e-05,2]
[348473431,1736551837979,-500.0,9.999e-05,2]
[348473432,1736551837989,-250.61456007,0.0001,2]
[348473433,1736551837999,-264.24558733,0.0001,2]
[348473435,1736551838010,-472792.23498949,0.0001,2]
[348473438,1736551838023,-74259.3599999,0.0001,2]
[348473440,1736551838036,-1920.55029064,0.0001,2]
[348473442,1736551838048,-89645.70050052,0.0001,2]
[348473444,1736551838059,-13977.10779218,0.0001,2]
[348473446,1736551838071,-375.13799864,0.0001,2]
[348473447,1736551838083,-1085.54122135,0.0001,2]
[348473448,1736551838097,-4780.72004386,0.0001,2]
[348473449,1736551838109,-20780.54390345,0.0001,2]
[348473450,1736551838120,-25123.0463099,0.0001,2]
[348473452,1736551838132,-826.5321856,0.0001,2]
[348473454,1736551838144,-544.99900001,0.0001,2]
[348473483,1736551838430,-752.655,0.0001,2]
[348473485,1736551838445,-530487.49342611,0.0001,2]
[348473488,1736551838457,-3387.62317,0.0001,2]
[348473490,1736551838470,-3779.0,0.0001,2]
[348473492,1736551838482,-2060.0,0.0001,2]
[348473495,1736551838494,-9780.7,0.0001,2]
[348473536,1736551839643,-1108.05999929,0.0001,2]
[348473537,1736551839656,-13040.97657437,0.0001,2]
[348473538,1736551839686,-4805.55,0.0001,2]
[348473539,1736551839700,-327.595,0.0001,2]
[348473540,1736551839711,-373.88756026,0.0001,2]
[348473541,1736551839740,-6573.89833254,0.0001,2]
[348473542,1736551839752,-5926.10166746,0.0001,2]
[348473543,1736551839947,-566.84138598,0.0001,2]
[348473544,1736551839959,-1652.09981065,0.0001,2]
[348473552,1736551842782,-452.68913019,9.999e-05,2]
[348473554,1736551845606,-638.43648707,9.799e-05,2]
[348473555,1736551845616,-47.31086981,9.999e-05,2]
[348473556,1736551845625,-553.01,9.999e-05,2]
[348473557,1736551845636,-500.0,9.999e-05,2]
[348473558,1736551845646,-500.0,9.999e-05,2]
[348473559,1736551845656,-16018.54264297,0.0001,2]
[348473560,1736551845720,-467980.5699934,0.0001,2]
[348473826,1736552257826,837.40721248,0.0002,120]
[348473828,1736552331360,615.47,8.219e-05,2]
[348473829,1736552401907,170.64,7.234e-05,2]
[348473836,1736553031800,-458.95,8.694e-05,2]
[348473838,1736553031810,-912.69,8.749e-05,2]
[348473840,1736553031820,-4098.79,8.894e-05,2]
[348473842,1736553031829,-163.73,8.98e-05,2]
[348473843,1736553031839,-300.0,9.066e-05,2]
[348473844,1736553031849,-4680.84,9.067e-05,2]
[348473845,1736553031861,-1132.87600634,9.067e-05,2]
[348473846,1736553031873,-18076.28399366,9.067e-05,2]
[348473847,1736553031883,-250.0,9.092e-05,2]
[348473848,1736553031893,-250.0,9.099e-05,2]
[348473849,1736553031903,-200.0,9.099e-05,2]
[348473850,1736553031912,-1000.0,9.12e-05,2]
[348473851,1736553031921,-250.0,9.136e-05,2]
[348473852,1736553031930,-772.07,9.14e-05,2]
[348473853,1736553031940,-437.86,9.14e-05,2]
[348473854,1736553031950,-437.86,9.14e-05,2]
[348473855,1736553031959,-772.07,9.14e-05,2]
[348473856,1736553031969,-159.67,9.14e-05,2]
[348473857,1736553031984,-766.06,9.14e-05,2]
[348473858,1736553031994,-772.07,9.141e-05,2]
[348473859,1736553032004,-437.86,9.141e-05,2]
[348473860,1736553032014,-150.0,9.159e-05,2]
[348473861,1736553032024,-772.07,9.16e-05,2]
[348473862,1736553032034,-437.86,9.16e-05,2]
[348473863,1736553032044,-437.86,9.16e-05,2]
[348473864,1736553032054,-772.07,9.16e-05,2]
[348473865,1736553032064,-280.2,9.171e-05,2]
[348473866,1736553032073,-437.79,9.18e-05,2]
[348473867,1736553032083,-771.95,9.18e-05,2]
[348473868,1736553032093,-150.0,9.278e-05,2]
[348473869,1736553032103,-208.992,9.5e-05,2]
[348473870,1736553032114,-500.0,9.798e-05,2]
[348473871,1736553032125,-878.14,9.798e-05,2]
[348473872,1736553032135,-500.0,9.798e-05,2]
[348473873,1736553032147,-500.0,9.798e-05,2]
[348473874,1736553032158,-585.41,9.798e-05,2]
[348473875,1736553032170,-500.0,9.798e-05,2]
[348473876,1736553032181,-500.0,9.798e-05,2]
[348473877,1736553032192,-500.0,9.798e-05,2]
[348473878,1736553032204,-1000.0,9.798e-05,2]
[348473879,1736553032216,-500.0,9.798e-05,2]
[348473880,1736553032227,-568.79,9.798e-05,2]
[348473881,1736553032239,-500.0,9.798e-05,2]
[348473882,1736553032249,-684.02,9.798e-05,2]
[348473883,1736553032261,-9245.849,9.799e-05,2]
[348473884,1736553032272,-485.876,9.799e-05,2]
[348473885,1736553032282,-4959.1477,9.899e-05,2]
[348473886,1736553032292,-3144.4001,9.9e-05,2]
[348473887,1736553032302,-379835.19509495,9.9e-05,2]
[348473889,1736553032315,-6237.49871909,9.9e-05,2]
[348473891,1736553032327,-23448.56032052,9.9e-05,2]
[348473894,1736553032347,-1956.94,9.9e-05,2]
[348473896,1736553032360,-793.07877249,9.9e-05,2]
[348473899,1736553032375,-1643.91621459,9.9e-05,2]
[348473901,1736553032387,-12167.29808063,9.9e-05,2]
[348473906,1736553032423,-1703.61103245,9.9e-05,2]
[348473908,1736553032435,-15578.27457381,9.9e-05,2]
[348473912,1736553032463,-796.7,9.9e-05,2]
[348473914,1736553032475,-3259.93952186,9.9e-05,2]
[348473916,1736553032487,-750.37477044,9.9e-05,2]
[348473919,1736553032504,-24617.61289917,9.9e-05,2]
[348473921,1736553032514,-500.0,9.973e-05,2]
[348473923,1736553032523,-519.2101584,9.973e-05,2]
[348473925,1736553032533,-420.0,9.973e-05,2]
[348473927,1736553032543,-5120.2997649,9.992e-05,2]
[348473929,1736553032552,-9796.0780353,9.992e-05,2]
[348473931,1736553032561,-4391.5047146,9.993e-05,2]
[348473933,1736553032571,-8401.7586571,9.993e-05,2]
[348473935,1736553032581,-565.42,9.998e-05,2]
[348473937,1736553032593,-401.71,9.998e-05,2]
[348473939,1736553032603,-500.0,9.998e-05,2]
[348473941,1736553032613,-500.0,9.998e-05,2]
[348473943,1736553032623,-500.0,9.998e-05,2]
[348473945,1736553032633,-500.0,9.998e-05,2]
[348473947,1736553032644,-500.0,9.998e-05,2]
[348473950,1736553032655,-500.0,9.998e-05,2]
[348473951,1736553032665,-500.0,9.998e-05,2]
[348473954,1736553032675,-500.0,9.998e-05,2]
[348473955,1736553032684,-500.0,9.998e-05,2]
[348473957,1736553032694,-426.65979373,9.998e-05,2]
[348473959,1736553032703,-500.0,9.998e-05,2]
[348473961,1736553032714,-500.0,9.998e-05,2]
[348473963,1736553032724,-922.62,9.998e-05,2]
[348473965,1736553032734,-500.0,9.998e-05,2]
[348473967,1736553032744,-500.0,9.998e-05,2]
[348473969,1736553032755,-1319.01,9.998e-05,2]
[348473970,1736553032765,-220.75225342,9.998e-05,2]
[348473972,1736553032775,-1022.27,9.998e-05,2]
[348473975,1736553032785,-512.51,9.998e-05,2]
[348473976,1736553032795,-1435.44,9.998e-05,2]
[348473978,1736553032805,-3421.21,9.998e-05,2]
[348473980,1736553032816,-500.0,9.998e-05,2]
[348473982,1736553032826,-500.0,9.998e-05,2]
[348473984,1736553032836,-500.0,9.998e-05,2]
[348473986,1736553032845,-1522.53,9.998e-05,2]
[348473988,1736553032855,-500.0,9.998e-05,2]
[348473990,1736553032865,-651.98,9.998e-05,2]
[348473992,1736553032876,-500.0,9.998e-05,2]
[348473994,1736553032885,-500.0,9.998e-05,2]
[348473996,1736553032895,-709.42,9.998e-05,2]
[348473998,1736553032905,-1644.71,9.998e-05,2]
[348474000,1736553032915,-1179.48,9.998e-05,2]
[348474002,1736553032924,-500.0,9.998e-05,2]
[348474004,1736553032934,-500.0,9.998e-05,2]
[348474006,1736553032944,-645.25,9.998e-05,2]
[348474008,1736553032954,-500.0,9.998e-05,2]
[348474010,1736553032967,-500.0,9.998e-05,2]
[348474012,1736553032976,-500.0,9.998e-05,2]
[348474014,1736553032986,-500.0,9.998e-05,2]
[348474016,1736553032996,-1947.07,9.998e-05,2]
[348474018,1736553033006,-471.3730705,9.998e-05,2]
[348474020,1736553033016,-500.0,9.998e-05,2]
[348474023,1736553033030,-500.0,9.998e-05,2]
[348474024,1736553033040,-632.556814,9.998e-05,2]
[348474026,1736553033050,-614.12,9.998e-05,2]
[348474028,1736553033059,-541.45,9.998e-05,2]
[348474030,1736553033069,-500.0,9.998e-05,2]
[348474032,1736553033080,-500.0,9.998e-05,2]
[348474037,1736553033389,-1044.79,9.998e-05,2]
[348474038,1736553033401,-500.0,9.998e-05,2]
[348474039,1736553033411,-511.023745,9.998e-05,2]
[348474040,1736553033421,-1883.01,9.998e-05,2]
[348474041,1736553033431,-1645.34,9.998e-05,2]
[348474042,1736553033442,-316.47,9.998e-05,2]
[348474043,1736553033451,-500.0,9.998e-05,2]
[348474044,1736553033462,-1217.06,9.998e-05,2]
[348474045,1736553033474,-511.39601329,9.998e-05,2]
[348474046,1736553033484,-500.0,9.998e-05,2]
[348474047,1736553033494,-907.81,9.998e-05,2]
[348474048,1736553033504,-500.0,9.998e-05,2]
[348474049,1736553033515,-500.0,9.998e-05,2]
[348474050,1736553033525,-850.68,9.998e-05,2]
[348474051,1736553033535,-500.0,9.998e-05,2]
[348474052,1736553033544,-500.0,9.998e-05,2]
[348474053,1736553033556,-1570.75,9.998e-05,2]
[348474054,1736553033567,-500.0,9.998e-05,2]
[348474055,1736553033576,-500.0,9.998e-05,2]
[348474056,1736553033587,-500.0,9.998e-05,2]
[348474057,1736553033597,-500.0,9.998e-05,2]
[348474058,1736553033607,-500.0,9.998e-05,2]
[348474059,1736553033617,-500.0,9.998e-05,2]
[348474060,1736553033626,-500.0,9.998e-05,2]
[348474061,1736553033636,-500.0,9.998e-05,2]
[348474062,1736553033646,-598.92464589,9.998e-05,2]
[348474063,1736553033657,-500.0,9.998e-05,2]
[348474064,1736553033668,-500.0,9.998e-05,2]
[348474065,1736553033678,-500.0,9.998e-05,2]
[348474066,1736553033688,-500.0,9.998e-05,2]
[348474067,1736553033698,-500.0,9.998e-05,2]
[348474068,1736553033708,-500.0,9.998e-05,2]
[348474069,1736553033718,-500.0,9.998e-05,2]
[348474070,1736553033728,-2039.24,9.998e-05,2]
[348474071,1736553033738,-500.0,9.998e-05,2]
[348474072,1736553033748,-500.0,9.998e-05,2]
[348474073,1736553033758,-500.0,9.998e-05,2]
[348474074,1736553033777,-175.45,9.999e-05,2]
[348474075,1736553033792,-500.0,9.999e-05,2]
[348474076,1736553033802,-500.0,9.999e-05,2]
[348474077,1736553033813,-500.0,9.999e-05,2]
[348474078,1736553033824,-501.70264171,9.999e-05,2]
[348474079,1736553033835,-500.0,9.999e-05,2]
[348474080,1736553033845,-500.0,9.999e-05,2]
[348474081,1736553033856,-500.0,9.999e-05,2]
[348474082,1736553033866,-500.0,9.999e-05,2]
[348474083,1736553033876,-500.0,9.999e-05,2]
[348474084,1736553033888,-500.0,9.999e-05,2]
[348474085,1736553033899,-500.0,9.999e-05,2]